Cogmind - Beta 15 @@@ ROGUE MODE // 2025.07.18 @ 15:55:47 Player: Selene Result: Self-destructed Performance ------------- Evolutions (5) 2500 Regions Visited (5) 1000 Robots Destroyed (46) 230 Value Destroyed (1357) 1357 Prototype IDs (11) 220 Alien Tech Used (0) 0 Bonus (800) 800 TOTAL SCORE: 6107 Bonus ------- Registered with UFD 300 Met Optimus in HQ 500 Cogmind --------- Core Integrity 659/1000 Matter 245/300 Energy 84/100 System Corruption 1% Temperature Cool (18) Movement Core (50) Location -5/Factory Parts ------- > --- POWER (2) -------- (None) > --- PROPULSION (6) --- (None) > --- UTILITY (7) ------ Advanced Weight Redist. System Enhanced Optical Array Improved Signal Interpreter Improved Utility Shielding Advanced Hacking Suite > --- WEAPON (2) ------- Makeshift Spear > --- INVENTORY (5) ---- Transmission Jammer ECM Suite Tesla Bomb Launcher Peak State ------------ > --- POWER ------------ Light Fission Core Light Neutrino Core > --- PROPULSION ------- Armored Leg Armored Leg Armored Leg Wheel Armored Huge Wheel > --- UTILITY ---------- Huge Storage Unit Machine Analyzer Advanced Sensor Array Improved Signal Interpreter Advanced Terrain Scan Processor Improved Medium Armor Plating System Shield > --- WEAPON ----------- KE Penetrator Makeshift Spear > --- INVENTORY -------- Light Deuterium Engine Light Fission Core Flight Unit Cesium-ion Thruster Nuclear Pulse Thruster Power Amplifier Advanced Heat Sink Medium Storage Unit Large Storage Unit Advanced Weight Redist. System Advanced Terrain Scanner Seismic Detector Improved Melee Analysis Suite Armor Integrity Analyzer Transmission Jammer ECM Suite Improved Reaction Control System Improved Utility Shielding Hardened Light Armor Plating Thermic Laser Long-range Proton Cannon Tesla Bomb Launcher Missile Launcher Heavy Rocket Launcher Great Axe [Rating: 78] Favorites ----------- Power Subdweller Power Source Engine Subdweller Power Source Power Core Nuclear Core Propulsion Light Treads Treads Light Treads Leg Armored Leg Wheel Wheel Flight Unit Cesium-ion Thruster Utility Huge Storage Unit Device Advanced Weight Redist. System Storage Huge Storage Unit Processor Machine Analyzer Hackware System Shield Protection Hardened Light Armor Plating Weapon Makeshift Spear Energy Gun Thermic Laser Energy Cannon Beam Cannon Ballistic Gun Subdweller Machine Gun Launcher Missile Launcher Slashing Weapon Great Axe Piercing Weapon Makeshift Spear Build | -11 -10 -10 -7 -7 -5 ------- Run | Yrd Mat Sub Rec Scr Fac Slots Evolved 10 | . . . . . 10 Power 1 | . . . . . 1 Propulsion 4 | . . . . . 4 Utility 5 | . . . . . 5 Weapon . | . . . . . . Parts Attached 74 | 7 3 8 6 15 35 Power 10 | 1 . 2 . 3 4 Engine 4 | 1 . 1 . 2 . Core 6 | . . 1 . 1 4 Reactor . | . . . . . . Propulsion 15 | 2 2 1 2 3 5 Treads 3 | . 2 1 . . . Leg 3 | . . . . . 3 Wheel 6 | 2 . . 2 1 1 Hover . | . . . . . . Flight 3 | . . . . 2 1 Utility 30 | 2 . . 3 4 21 Device 11 | 1 . . 2 1 7 Storage 6 | 1 . . 1 1 3 Processor 6 | . . . . . 6 Hackware 3 | . . . . 1 2 Protection 4 | . . . . 1 3 Artifact . | . . . . . . Weapon 19 | 2 1 5 1 5 5 Energy Gun 2 | . . 1 . 1 . Energy Cannon 1 | . . . . 1 . Ballistic Gun 11 | 2 1 4 . 1 3 Ballistic Cannon . | . . . . . . Launcher 3 | . . . . 2 1 Special Weapon . | . . . . . . Impact Weapon . | . . . . . . Slashing Weapon 1 | . . . . . 1 Piercing Weapon 1 | . . . 1 . . Special Melee Weapon . | . . . . . . Unidentified Prototypes 5 | . . . . . 5 Corrupted Parts 1 | . . . . 1 . System Corruption 2 | . . . . 2 . Parts Lost 20 | . . 7 . . 13 Power 5 | . . 2 . . 3 Propulsion 7 | . . 2 . . 5 Utility 5 | . . 1 . . 4 Weapon 3 | . . 2 . . 1 Highest Loss Streak 7 | . . 3 . . 7 To Critical Strikes . | . . . . . . Average Backups 15 | 3 7 7 14 16 22 Power . | . 1 . . . 1 Propulsion 1 | 1 2 . . 1 2 Utility 8 | . . 2 7 9 12 Weapon 5 | . 2 4 7 4 5 Tool/Special . | . . . . . . Unused Backups 64 | . 6 4 2 37 15 Power 4 | . 2 . . 1 1 Propulsion 7 | . 2 . 1 4 . Utility 27 | . . 2 . 16 9 Weapon 23 | . 2 2 1 14 4 Tool/Special 3 | . . . . 2 1 Average Slot Usage (%) 84 | . 100 92 78 87 80 Engine 8 | . 14 1 14 8 3 Core 3 | . . 12 . 4 2 Treads 7 | . 17 22 13 . . Leg 2 | . . . . . 13 Wheel 9 | . 10 . . 19 4 Flight 1 | . . . . 2 2 Device 7 | . 14 13 11 3 6 Storage 11 | . 14 14 14 12 4 Processor 3 | . . . . . 15 Hackware 1 | . . . . . 5 Protection 4 | . . . . 9 4 Ballistic Gun 12 | . 28 27 12 9 2 Piercing Weapon 8 | . . . 10 12 3 Peak Build Rating 78 | 7 8 11 18 31 78 Average Rating 25 | 5 7 10 14 22 62 On Entrance 11 | . 7 8 9 18 29 Naked Turns 22 | . . . . 22 . Heaviest Build 213 | 12 13 19 92 213 110 Greatest Support 48 | 26 40 40 29 28 48 Greatest Overweight (x) 10 | . . . 4 10 3 Average Overweight (x) 2 | . . . 1 3 1 Largest Inventory Capacity 35 | 8 8 8 25 35 25 Average Capacity 19 | 7 8 8 18 23 22 Most Carried 25 | 5 8 8 23 25 25 Average Carried 15 | 3 7 7 14 16 22 Final Capacity 25 | 8 8 8 25 25 5 Final Carried 25 | 5 8 8 23 25 3 Class Distribution -------------------- 51% | Mutant 21% | Derelict-Mutant 8% | Derelict-Assassin 7% | Scavenger-Mutant 5% | Assassin Dominant Class ---------------- Mutant | -10/Materials Mutant | -10/Subcaves Mutant | -7/Recycling Derelict-Mutant | -7/Scraptown Derelict-Assassin | -5/Factory Resources | -11 -10 -10 -7 -7 -5 ----------- Run | Yrd Mat Sub Rec Scr Fac Matter Collected 2170 | 275 266 263 242 318 806 Remotely . | . . . . . . Salvage Created 2278 | 94 320 312 23 . 1529 Parts 125 | 10 22 14 5 . 74 Haulers Intercepted 2 | . 1 . . . 1 Recyclers Shooed 6 | 1 . . 2 . 3 Parts Field Recycled . | . . . . . . Retrieved Matter . | . . . . . . Parts Self-Destructed 5 | . . 5 . . . Prevented . | . . . . . . Kills | -11 -10 -10 -7 -7 -5 ------- Run | Yrd Mat Sub Rec Scr Fac Combat Hostiles Destroyed 27 | . 8 9 . . 10 Melee 5 | . . . . . 5 Guns 21 | . 8 9 . . 4 Classes Destroyed 13 | 1 5 2 1 . 4 Worker 3 | . 1 . . . 2 Builder 1 | . . . 1 . . Tunneler 4 | 4 . . . . . Hauler 2 | . 1 . . . 1 Recycler 6 | . . . . . 6 Turret 2 | . . 2 . . . Watcher 1 | . 1 . . . . Swarmer 7 | . 3 4 . . . Grunt 6 | . 5 . . . 1 Sentry 1 | . . . . . 1 Hunter 3 | . . . . . 3 Programmer 5 | . . . . . 5 Subdweller 5 | . . 5 . . . Best Kill Streak 6 | 4 5 6 1 . 5 Combat Bots Only 3 | . 3 3 . . 3 Max Kills in Single Turn 2 | 1 2 1 1 . 2 Gunslinging . | . . . . . . Exploded . | . . . . . . Melee 1 | . . . . . 1 Uniques/NPCs Destroyed . | . . . . . . Combat | -11 -10 -10 -7 -7 -5 -------- Run | Yrd Mat Sub Rec Scr Fac Hostile Shots Fired 324 | . 46 95 . . 183 Missed 103 | . 11 34 . . 58 Hits 221 | . 35 61 . . 125 Projectile 221 | . 35 61 . . 125 AOE 1 | . . . . . 1 Critical Strikes 6 | . . . . . 6 Part Disruptions 1 | . . . . . 1 Damage Taken 3553 | . 354 776 . . 2423 Core 566 | . 65 160 . . 341 Absorbed by Shields . | . . . . . . Redirected to Shielding 11 | . . . . . 11 Regen/Repaired (Parts) 486 | . . . . 261 225 Core Remaining (%) 55 | 100 . . . 10 . Volleys Fired 114 | 9 40 40 . . 25 Largest 2 | 2 2 2 . . 2 Hottest 66 | 40 40 60 . . 66 Shots Fired 224 | 18 80 80 1 . 45 Gun 223 | 18 80 80 1 . 44 Cannon . | . . . . . . Launcher 1 | . . . . . 1 Special . | . . . . . . Kinetic 223 | 18 80 80 1 . 44 Thermal . | . . . . . . Explosive 1 | . . . . . 1 Electromagnetic . | . . . . . . Robot Hit Streak 16 | 4 10 16 . . 7 Robot Miss Streak 7 | 1 7 2 . . 2 Penetration Max 1 | . . . . . 1 Secondary Targets 4 | . 1 3 . . . Max Gunslinging Chain 1 | . 1 1 . . . Shots Hit Robots 177 | 11 43 64 2 . 57 Core Hits 71 | 4 20 18 1 . 28 Critical Kills 5 | . . . . . 5 Critical Parts Destroyed 2 | . . . . . 2 Critical Strikes 10 | . . . . . 10 Destroy 7 | . . . . . 7 Sever 1 | . . . . . 1 Impale 2 | . . . . . 2 Melee Attacks 87 | . . . 3 . 84 Impact . | . . . . . . Slashing 15 | . . . . . 15 Piercing 72 | . . . 3 . 69 Sneak Attacks 12 | . . . 2 . 10 Combat Hostiles . | . . . . . . Follow-up Attacks 4 | . . . . . 4 Damage Inflicted 3609 | 120 527 1028 121 . 1813 Guns 2186 | 120 519 1028 . . 519 Cannons . | . . . . . . Explosions . | . . . . . . Melee 1415 | . . . 121 . 1294 Ramming 8 | . 8 . . . . Kinetic 2186 | 120 519 1028 . . 519 Thermal . | . . . . . . Explosive . | . . . . . . Electromagnetic . | . . . . . . Impact . | . . . . . . Slashing 328 | . . . . . 328 Piercing 1087 | . . . 121 . 966 Highest Corruption 8 | . 2 2 2 2 8 Average Corruption 2 | . 1 2 2 2 3 Corruption Purged 8 | . . . . . 8 Corruption Blocked . | . . . . . . Effects 66 | . 6 12 37 . 11 Message Errors 21 | . 2 3 14 . 2 Matter Fused 14 | . . 2 9 . 3 Heat Flow Errors 7 | . 1 . 5 . 1 Energy Discharges 7 | . 1 2 3 . 1 Data Loss (minor) 10 | . 1 2 3 . 4 Data Loss (major) 2 | . 1 1 . . . Misfires 3 | . . 2 1 . . Alerts 2 | . . . 2 . . Overload Shots . | . . . . . . Overflow Damage 85 | . . . . . 85 Projectiles . | . . . . . . Explosions . | . . . . . . Melee 85 | . . . . . 85 Knockbacks . | . . . . . . Impact . | . . . . . . Kinetic . | . . . . . . Secondary . | . . . . . . Self-Inflicted Damage 51 | . . . . . 51 Shots 1 | . . . . . 1 Rammed 1 | . 1 . . . . Targets Rammed 1 | . 1 . . . . Kicked . | . . . . . . Crushed . | . . . . . . Highest Temperature 225 | . 107 . 225 . 83 Average Temperature 76 | . 39 . 92 . 45 Received Heat Transfer 531 | . 111 150 . . 270 Siege Activations . | . . . . . . Martial Activations . | . . . . . . Shielding Activations . | . . . . . . Robots Disrupted . | . . . . . . Combat Hostiles . | . . . . . . Robots Corrupted . | . . . . . . Combat Hostiles . | . . . . . . Parts Fried . | . . . . . . Impact Corruptions . | . . . . . . Robots Melted . | . . . . . . Combat Hostiles . | . . . . . . Parts Melted 1 | . . . . . 1 Heat Transferred . | . . . . . . Parts Sabotaged . | . . . . . . Parts Stolen . | . . . . . . Parts Stripped . | . . . . . . Power Chain Reactions . | . . . . . . Alert | -11 -10 -10 -7 -7 -5 ------- Run | Yrd Mat Sub Rec Scr Fac Maximum Alert Level 1 | . . . . . 1 Low Security (%) 97 | 100 100 . 100 . 93 Level 1 2 | . . . . . 6 Level 2 . | . . . . . . Level 3 . | . . . . . . Level 4 . | . . . . . . Level 5 . | . . . . . . High Security . | . . . . . . Max Security . | . . . . . . Peak Influence 254 | 10 129 . 122 . 254 Initial 122 | . . . 122 . . Average 31 | 1 33 . 8 . 66 Influence Increases 1408 | 20 308 300 137 . 643 Destroy 0b10 Robot/C 480 | . 160 120 . . 200 Destroy 0b10 Robot/NC 85 | 20 15 . 5 . 45 Destroy Leader 96 | . 44 . . . 52 Successful Hack 88 | . 13 . 41 . 34 Select Force Hacks 90 | . . . 90 . . Disable Machine 60 | . . . . . 60 Destroy Structure 74 | . 1 . 1 . 72 Lose Combat Pursuer 435 | . 75 180 . . 180 Influence Decreases 1213 | 20 195 157 393 . 448 Entered New Map 189 | . . 55 134 . . Time Decay 854 | 20 195 62 259 . 318 Lost Part 170 | . . 40 . . 130 Squads Dispatched 10 | . 1 . . . 9 Investigation 5 | . 1 . . . 4 Extermination 3 | . . . . . 3 Reinforcement 2 | . . . . . 2 Assault . | . . . . . . Garrison . | . . . . . . Intercept . | . . . . . . Searches Triggered . | . . . . . . Construction Impeded 1 | . . . . . 1 Haulers Reinforced . | . . . . . . Active Scanning Responses . | . . . . . . Cargo Convoy Interrupts . | . . . . . . Stealth | -11 -10 -10 -7 -7 -5 --------- Run | Yrd Mat Sub Rec Scr Fac Distress Signals 2 | . 1 . . . 1 Communications Jammed . | . . . . . . Distress Signals . | . . . . . . Times Spotted 70 | . 19 18 . . 33 Peak Tracking Total 10 | . 4 6 . . 10 Tactical Retreats 12 | . 3 3 . . 6 Traps | -11 -10 -10 -7 -7 -5 ------- Run | Yrd Mat Sub Rec Scr Fac Traps Triggered 5 | . 3 1 . . 1 Indirectly . | . . . . . . Trap Hack Attempts . | . . . . . . Triggered . | . . . . . . Disarmed . | . . . . . . Reprogrammed . | . . . . . . Reused . | . . . . . . Traps Extracted . | . . . . . . Installed . | . . . . . . Triggered . | . . . . . . Machines | -11 -10 -10 -7 -7 -5 ---------- Run | Yrd Mat Sub Rec Scr Fac Machines Disabled 5 | . . 1 . . 4 Max in Single Turn 1 | . . 1 . . 1 Machines Repaired . | . . . . . . Machines Dismantled . | . . . . . . Machines Sabotaged . | . . . . . . Overloaded Fab Kills . | . . . . . . Hacking | -11 -10 -10 -7 -7 -5 --------- Run | Yrd Mat Sub Rec Scr Fac Machines Accessed 25 | . 3 . 11 2 9 Terminals 14 | . 3 . 6 . 5 Fabricators 1 | . . . . . 1 Repair Stations 1 | . . . . . 1 Recycling Units 7 | . . . 5 . 2 Scanalyzers . | . . . . . . Garrison Access . | . . . . . . Total Hacks 77 | . 8 . 35 5 29 Successful 33 | . 4 . 10 5 14 Failed 44 | . 4 . 25 . 15 Catastrophic 10 | . . . 5 . 5 Database Lockouts . | . . . . . . Manual 45 | . 5 . 22 . 18 Terminals 46 | . 8 . 22 . 16 Fabricators 4 | . . . . . 4 Repair Stations 3 | . . . . . 3 Recycling Units 19 | . . . 13 . 6 Scanalyzers . | . . . . . . Garrison Access . | . . . . . . Terminal Hacks 11 | . 1 . 3 5 2 Record 5 | . 1 . . 4 . Part Schematic 1 | . . . 1 . . Robot Analysis 2 | . . . 2 . . Terminal Index 1 | . . . . . 1 Locate Traps 1 | . . . . . 1 Proto ID Catalog 1 | . . . . 1 . Fabricator Hacks 1 | . . . . . 1 Build 1 | . . . . . 1 Repair Station Hacks 2 | . . . . . 2 Scan Component 1 | . . . . . 1 Repair 1 | . . . . . 1 Recycling Unit Hacks 3 | . . . 1 . 2 Retrieve Components 3 | . . . 1 . 2 Scanalyzer . | . . . . . . Garrison Access Hacks . | . . . . . . Unauthorized Hacks 16 | . 3 . 6 . 7 Terminals 11 | . 3 . 3 . 5 Botnet 9 | . 3 . 3 . 3 Skim 2 | . . . . . 2 Fabricators . | . . . . . . Repair Stations . | . . . . . . Recycling Units 5 | . . . 3 . 2 Tunnel 3 | . . . 3 . . Fedlink 2 | . . . . . 2 Scanalyzers . | . . . . . . Garrison Access . | . . . . . . Data Cores Recovered . | . . . . . . Used . | . . . . . . Hacking Detections 22 | . 3 . 11 . 8 Full Trace Events 5 | . . . 3 . 2 Feedback Events . | . . . . . . Feedback Blocked . | . . . . . . Robot Schematics Acquired . | . . . . . . Robots Built . | . . . . . . Authchips . | . . . . . . Time . | . . . . . . Total Robot Build Rating . | . . . . . . Part Schematics Acquired 1 | . . . 1 . . Parts Built 2 | . . . . . 2 Authchips . | . . . . . . Time 106 | . . . . . 106 Total Part Build Rating 12 | . . . . . 12 Parts Repaired 1 | . . . . . 1 Time 22 | . . . . . 22 Parts Recycled . | . . . . . . Recycled Matter . | . . . . . . Retrieved Matter . | . . . . . . Retrieved Components 8 | . . . 1 . 7 Parts Scanalyzed . | . . . . . . Part Schematics Acquired . | . . . . . . Parts Damaged . | . . . . . . Bothacking | -11 -10 -10 -7 -7 -5 ------------ Run | Yrd Mat Sub Rec Scr Fac Used RIF Installer . | . . . . . . Robots Hacked . | . . . . . . Non-combat . | . . . . . . Combat . | . . . . . . Robot Hacks Applied . | . . . . . . Relay Couplers Released . | . . . . . . Fabnet Peak Effective % . | . . . . . . Robots Rewired . | . . . . . . Allies Hacked . | . . . . . . Hacks Repelled . | . . . . . . Allies | -11 -10 -10 -7 -7 -5 -------- Run | Yrd Mat Sub Rec Scr Fac Total Allies . | . . . . . . Largest Group . | . . . . . . Highest-Rated Group . | . . . . . . Highest-Rated Ally . | . . . . . . Total Orders . | . . . . . . Ally Attacks . | . . . . . . Total Damage . | . . . . . . Kills . | . . . . . . Allies Corrupted . | . . . . . . Allies Melted . | . . . . . . Intel | -11 -10 -10 -7 -7 -5 ------- Run | Yrd Mat Sub Rec Scr Fac Active Infowar (turns) 3701 | 25 673 849 . 255 1899 Optics 58 | . . . . . 58 Sensors 1791 | . . . . . 1791 Terrain 349 | . . . . 255 94 Seismic 1547 | 25 673 849 . . . Machine Analysis 1839 | . . . . . 1839 Jamming 2 | . . . . . 2 Robot Analysis Total 2 | . . . 2 . . Derelict Logs Recovered 5 | . . 1 . 4 . Drone Launches . | . . . . . . Drone Recoveries . | . . . . . . Exploration | -11 -10 -10 -7 -7 -5 ------------- Run | Yrd Mat Sub Rec Scr Fac Turns Passed 9945 | 119 673 904 2717 3632 1900 Spaces Moved 5690 | 82 416 476 1017 2421 1278 Core 37 | 3 . . . 29 5 Treads 1629 | . 174 476 979 . . Legs 29 | . . . . . 29 Wheels 3421 | 79 242 . 38 2236 826 Hover . | . . . . . . Flight 574 | . . . . 156 418 Fastest Speed 32 | 50 90 160 110 34 32 Average Speed 155 | 88 119 160 258 142 112 Slowest Speed 480 | 90 160 160 480 230 260 Overloaded Moves . | . . . . . . Propulsion Burnouts . | . . . . . . Robots Hopped 4 | . . . . . 4 Potential Cave-ins . | . . . . . . Cave-ins Triggered . | . . . . . . Exploration Rate (%) 47 | 3 62 14 86 90 32 Regions Visited 5 Branch Regions 3 Pre-discovered Areas 7 | . . 1 3 2 1 Known Exits Taken . | . . . . . . Unknown Exits Taken 5 | 1 1 1 1 1 . Scrap Searched 13 | . . 2 . 11 . Spaces Dug 22 | . . . . . 22 Terrain Destroyed 39 | . . 3 1 . 35 Melee 22 | . . . . . 22 Projectile 6 | . . 3 1 . 2 AOE 11 | . . . . . 11 Terrain Rammed . | . . . . . . Walls Destroyed . | . . . . . . Machines Disabled . | . . . . . . Actions | -11 -10 -10 -7 -7 -5 --------- Run | Yrd Mat Sub Rec Scr Fac Total 6546 | 108 522 546 1099 2651 1620 Wait 204 | 6 41 4 53 . 100 Move 5677 | 81 415 475 1016 2420 1270 Hop 4 | . . . . . 4 Pick Up 169 | 5 11 11 16 97 29 Fast Attach 45 | 7 . . 2 21 15 Attach 30 | . . 5 1 2 22 Detach 29 | . . . 2 14 13 Swap 39 | . 4 3 4 2 26 Drop 154 | . 10 8 2 95 39 Fire 114 | 9 40 40 . . 25 Melee 80 | . . . 3 . 77 Ram . | . . . . . . Kick . | . . . . . . Crush 1 | . 1 . . . . Escape Stasis . | . . . . . . Rewire . | . . . . . . Trap . | . . . . . . Miscellaneous . | . . . . . . Route ------- -11/Scrapyard -10/Materials (discovered 3 exits: [*Mat] / [*Min] / [*Sub]) -10/Subcaves -7/Recycling (discovered 2 exits: *Fac / *Scr) -7/Scraptown (discovered 2 exits: *Fac x2) -5/Factory (discovered 3 exits: *Fac x2 / *Upp) History --------- Turn | Location | Event 28 | -11/Scrapyard | Discovered new exit (range 16) 120 | -11/Scrapyard | Entered Materials 225 | -10/Materials | Discovered new exit (range 5) 300 | -10/Materials | Discovered new exit (range 16) 308 | -10/Materials | Build established: Mutant 720 | -10/Materials | Discovered new exit (range 11) 793 | -10/Materials | Entered Subcaves 905 | -10/Subcaves | Core integrity fell below 50% 1272 | -10/Subcaves | Shifting Twisted Machinery released Sub. Laser 1277 | -10/Subcaves | Shifting Twisted Machinery released Sub. Machine Gun 1363 | -10/Subcaves | Lost 3 parts (2n1w) 1613 | -10/Subcaves | Discovered new exit (range 11) 1614 | -10/Subcaves | Build established: Scavenger-Mutant 1633 | -10/Subcaves | Core integrity fell below 20% 1644 | -10/Subcaves | Ambushed by Subdweller buried in earth 1697 | -10/Subcaves | Entered Recycling 1930 | -7/Recycling | Build established: Mutant 2488 | -7/Recycling | Build established: Scavenger-Mutant 2631 | -7/Recycling | Discovered new exit (range 14) 2976 | -7/Recycling | Build established: Mutant 4379 | -7/Recycling | Scanned before Scraplab entrance 4400 | -7/Recycling | Entered Scraplab 4411 | -7/Recycling | Discovered new exit (range 2) 4414 | -7/Recycling | Entered Scraptown 4414 | -7/Scraptown | System corruption cleaned by C-Scrubber 4559 | -7/Scraptown | Heard Great Nut preacher, LISTEN AND RECITE! 4564 | -7/Scraptown | Visited Spacefarers 4631 | -7/Scraptown | Scanned Subdweller tech in exchange for log data 4634 | -7/Scraptown | Learned location of Extension (-6) 4635 | -7/Scraptown | Learned location of Quarantine (-2) 4636 | -7/Scraptown | Learned Research terminal intel 4638 | -7/Scraptown | Learned location of 1 exit from Factory 4652 | -7/Scraptown | Discovered new exit (range 11) 4747 | -7/Scraptown | Visited TADAMA 4765 | -7/Scraptown | Visited Observation Area 4799 | -7/Scraptown | Visited Bundlers 4814 | -7/Scraptown | Visited UFD Registry 4814 | -7/Scraptown | Registered with UFD as "Slugmod" 4952 | -7/Scraptown | Visited Supply Room 5288 | -7/Scraptown | System corruption cleaned by C-Scrubber 5747 | -7/Scraptown | Visited CR-KLE's Repair Center 5807 | -7/Scraptown | Build established: Derelict-Mutant 5848 | -7/Scraptown | Visited Junk Cannon Lab 5875 | -7/Scraptown | Visited Research Penetration Think Tank 5906 | -7/Scraptown | Visited Science Guys 5950 | -7/Scraptown | Visited Chapter 10 5971 | -7/Scraptown | Visited Scrap Suit Storage 6008 | -7/Scraptown | Visited Abandonware Association 6022 | -7/Scraptown | Learned abandonware demo "KABOOM.EXE" 6082 | -7/Scraptown | Visited DA-N13 Charitable Foundation 6088 | -7/Scraptown | Found DCF Scrap (30 items) 6192 | -7/Scraptown | Visited LU-1G1's Boring Crew 6479 | -7/Scraptown | Visited Symbiants 7051 | -7/Scraptown | Found Scrap Suit 7109 | -7/Scraptown | Discovered new exit (range 3) 7603 | -7/Scraptown | CR-KLE repaired 7 parts 7768 | -7/Scraptown | Build established: Mutant 7970 | -7/Scraptown | Met Optimus 7970 | -7/Scraptown | Accepted into 0bPrime 8046 | -7/Scraptown | Entered Factory 8046 | -5/Factory | Evolved 10 slots: Power x1, Propulsion x4, Utility x5 8047 | -5/Factory | Identified exit to Factory 8346 | -5/Factory | Build established: Derelict-Assassin 8470 | -5/Factory | Fabricated Imp. Transmission Jammer? 8622 | -5/Factory | Discovered new exit (range 5) 8626 | -5/Factory | Identified exit to Upper Caves 8816 | -5/Factory | Discovered exit to Factory (range 7) 8867 | -5/Factory | Loaded intel: 8 recycling unit locations 8874 | -5/Factory | Build established: Assassin 9098 | -5/Factory | Repaired Imp. Medium Armor Plating 9206 | -5/Factory | Found Prototype Launcher 9206 | -5/Factory | Identified Tesla Bomb Launcher 9356 | -5/Factory | Learned location of Protoforge (-2) 9511 | -5/Factory | Build established: Derelict-Assassin 9588 | -5/Factory | Lost 5 parts (1p2n1u1w) 9946 | -5/Factory | Self-destructed Last Messages --------------- 09926_ Triggered Segregator Trap. 09926_ Arcs of energy rise from the floor. 09926_ Adv. Sensor Array blown off. 09926_ Hrd. Light Armor Plating blown off. 09926_ Cesium-ion Thruster blown off. 09926_ Nuclear Pulse Thruster blown off. 09927_ Acquired Nuclear Pulse Thruster. 09928_ P-70 Sage resets G-50 Soldier, system corruption cleaned. 09929_ Acquired Cesium-ion Thruster. 09931_ Acquired Adv. Sensor Array. 09932_ Acquired Hrd. Light Armor Plating. 09937_ Adv. Sensor Array destroyed. 09937_ Lgt. Fission Core destroyed. 09940_ K-01 Serf cleans the Terminal. 09943_ Hrd. Light Armor Plating destroyed. 09943_ Nuclear Pulse Thruster destroyed. 09944_ Lgt. Deuterium Engine destroyed. 09944_ Penetrated by Slug. 09944_ Cesium-ion Thruster destroyed. Map ----- +----------------------------------------------------+ | ??????????????????????????????????# #??????? | | ??????????????????????????????????# #??????? | | ?????????????????????############## #??????? | | ?????????????????????# # #??????? | | ?????????????????????# + +??????? | | ?????????????????????# """""" # #??????? | | ?????????????????????# """""" # #??????? | | ?????????????????????# """""" # #??????? | | ?????????????????????# """""" # #??????? | | ?????????????????????# ""# #??????? | | ?????????????????????# """""" ""# #??????? | | ?????????????????????# """""" T"# #??????? | | ?????????????????????# """""" ""# #??????? | | ?????????????????????# """""" ""# #??????? | | ?????????????????????# # #??????? | | ?????????????????????############## #??????? | | ?????????????????????### #####;#### #??????? | | ?????????????????????# # #??????? | | ?????????????????????# "" # #??????? | | ?????????????????????#""" u # #??????? | | ?????????????????????#"T [ """ # #??????? | | ?????????????????????#""" """ # #??????? | | ?????????????????????# "" """YA/ +??????? | | ?????????????????????# g # #??????? | | ??????????############ g # #??????? | | ??????# Ro A k @ !R g# ^ ^#??????? | | ??????????############ ! p# #??????? | | ?????????????????????# ! p# #??????? | | ?????????????????????# # #??????? | | ?????????????????????############## #??????? | | ??????????????????????????????????# #??????? | | ??????????????????????????????????/ #??????? | | ??????????????????????????????????# +??????? | | ??????????????????????????????????# #??????? | | ??????????????????????????????????# #??????? | | ??????????????????????????????????# #??????? | | ??????????????????????????????????# #??????? | | ??????????????????????????????????# #??????? | | ??????????????????????????????????+ #??????? | | ??????????????????????????????????#### ??????? | | ?????????????????????????????????????? ?????? | | ?????????????????????????????????????? ?????? | | ??????????????????????????????????????+##+###????? | | ?????????????????????????????????????????????????? | | ?????????????????????????????????????????????????? | | ?????????????????????????????????????????????????? | | ?????????????????????????????????????????????????? | | ?????????????????????????????????????????????????? | | ?????????????????????????????????????????????????? | | ?????????????????????????????????????????????????? | +----------------------------------------------------+ Best States ------------- Heat Dissipation 40 Coolant Potential 50 Energy Generation 34 Energy Capacity 410 Matter Stores 300 Matter Capacity 600 Sight Range 22 Robot Scan Range 16 Terrain Scan Range 16 Terrain Scan Density 210 Power Amplification 20 Additional Mass Support 9 Corruption Block 2 Armor Coverage 225 Evasion (%) 73 Recoil Reduction 2 Offensive Hacking 14 Defensive Hacking 10 Authchip Count 2 Item Schematics ----------------- Antigrav System | -7/Recycling | Hacked Robot Schematics ------------------ None Fabricated ------------ Imp. Transmission Jammer | x2 | -5/Factory | Preloaded Repaired ---------- Imp. Medium Armor Plating | 6% | -5/Factory Alien Tech Used ----------------- None Achievements -------------- None Challenges ------------ None Game ------ Seed AlphaFieldLoader Manual? 0 Play Time 01:10:36 Cumulative 220.5 hours Start 2025.07.18 @ 14:44:10 End 2025.07.18 @ 15:55:47 Sessions 1 Manual Loads 0 Difficulty Rogue Special Mode None Game No. 140 Rogue 136 Adventurer 4 Explorer 0 Win Type - Total 7 Types 6/0/1/0/0/0/0/0/0/0 Lore% 80 Gallery% 71 Achievement% 60 Wizard Run 0 Options --------- Layout 1 ASCII 0 Keyboard 1 Movement Vi Keybinds 1 Fullscreen 2 Font 24/Smallcaps Map View 50x35 Zoom Use 0% Tactical HUD 1 Map Filters NONE Filters NONE Steam 1 RUN: 9f6459b9-449c-40d6-be3d-08828ee516e2